[Event "Titled Tuesday Blitz January 31 Early 2023"]
[White "Melaugh, Shane"]
[Black "Klekowski, Maciej"]
[WhiteFideId "2509580"]
[BlackFideId "1132717"]
[WhiteElo "2115"]
[BlackElo "2477"]
[Result "1-0"]
[Round "01"]
[TimeControl "180+2"]
[Date "2023.01.31"]
[WhiteClock "0:00:16"]
[BlackClock "0:00:27"]

1. c4 {[%clk 0:02:59]}  e5 {[%clk 0:02:59]} 2. Nc3 {[%clk 0:02:59]}  f5 {[%clk 0:02:58]} 3. g3 {[%clk 0:02:51]}  Nf6 {[%clk 0:02:57]} 4. Bg2 {[%clk 0:02:50]}  Bb4 {[%clk 0:02:57]} 5. Nf3 {[%clk 0:02:47]}  Nc6 {[%clk 0:02:54]} 6. d3 {[%clk 0:02:47]}  O-O {[%clk 0:02:54]} 7. Bd2 {[%clk 0:02:47]}  Kh8 {[%clk 0:02:54]} 8. O-O {[%clk 0:02:45]}  d6 {[%clk 0:02:54]} 9. a3 {[%clk 0:02:41]}  Bxc3 {[%clk 0:02:53]} 10. Bxc3 {[%clk 0:02:41]}  Qe8 {[%clk 0:02:54]} 11. e3 {[%clk 0:02:41]}  Be6 {[%clk 0:02:48]} 12. b4 {[%clk 0:02:24]}  Rd8 {[%clk 0:02:36]} 13. Rc1 {[%clk 0:02:14]}  Bf7 {[%clk 0:02:12]} 14. b5 {[%clk 0:02:09]}  Nb8 {[%clk 0:01:56]} 15. h3 {[%clk 0:01:56]}  b6 {[%clk 0:01:50]} 16. a4 {[%clk 0:01:53]}  Nbd7 {[%clk 0:01:50]} 17. Bb4 {[%clk 0:01:50]}  Bh5 {[%clk 0:01:44]} 18. Qc2 {[%clk 0:01:48]}  Bxf3 {[%clk 0:01:19]} 19. Bxf3 {[%clk 0:01:46]}  Qg6 {[%clk 0:01:19]} 20. Kh2 {[%clk 0:01:36]}  e4 {[%clk 0:01:03]} 21. Bg2 {[%clk 0:01:30]}  Nc5 {[%clk 0:01:01]} 22. d4 {[%clk 0:01:13]}  Ne6 {[%clk 0:00:57]} 23. c5 {[%clk 0:01:05]}  Ng5 {[%clk 0:00:50]} 24. cxd6 {[%clk 0:00:49]}  cxd6 {[%clk 0:00:51]} 25. Qc7 {[%clk 0:00:49]}  Rd7 {[%clk 0:00:48]} 26. Qc6 {[%clk 0:00:42]}  Qh6 {[%clk 0:00:42]} 27. h4 {[%clk 0:00:28]}  Rfd8 {[%clk 0:00:39]} 28. Kg1 {[%clk 0:00:25]}  Ng4 {[%clk 0:00:38]} 29. Qxd7 {[%clk 0:00:21]}  Rg8 {[%clk 0:00:35]} 30. Rc7 {[%clk 0:00:19]}  Nf3+ {[%clk 0:00:28]} 31. Bxf3 {[%clk 0:00:18]}  exf3 {[%clk 0:00:28]} 32. Qxf5 {[%clk 0:00:18]}  Nxe3 {[%clk 0:00:28]} 33. fxe3 {[%clk 0:00:17]}  Qxe3+ {[%clk 0:00:28]} 34. Rf2 {[%clk 0:00:18]}  Qxd4 {[%clk 0:00:28]} 35. Bc3 {[%clk 0:00:17]}  Qd1+ {[%clk 0:00:27]} 36. Kh2 {[%clk 0:00:16]} 1-0


[Site "https://www.chess.com"]

[Event "Titled Tuesday Blitz January 31 Early 2023"]
[White "Matinian, Nikita"]
[Black "Chan, Kim Yew"]
[WhiteFideId "24129100"]
[BlackFideId "5717981"]
[WhiteElo "2407"]
[BlackElo "2340"]
[Result "0-1"]
[Round "01"]
[TimeControl "180+2"]
[Date "2023.01.31"]
[WhiteClock "0:00:02"]
[BlackClock "0:00:12"]

1. e4 {[%clk 0:02:18]}  c5 {[%clk 0:02:57]} 2. Nf3 {[%clk 0:02:17]}  Nc6 {[%clk 0:02:56]} 3. Bb5 {[%clk 0:02:16]}  g6 {[%clk 0:02:56]} 4. O-O {[%clk 0:02:15]}  Bg7 {[%clk 0:02:56]} 5. Re1 {[%clk 0:02:15]}  Nf6 {[%clk 0:02:33]} 6. Nc3 {[%clk 0:02:07]}  O-O {[%clk 0:02:32]} 7. Bxc6 {[%clk 0:02:06]}  dxc6 {[%clk 0:02:33]} 8. e5 {[%clk 0:02:03]}  Nd5 {[%clk 0:02:31]} 9. Ne4 {[%clk 0:02:03]}  b6 {[%clk 0:02:28]} 10. h3 {[%clk 0:02:04]}  h6 {[%clk 0:02:24]} 11. d3 {[%clk 0:02:04]}  Bf5 {[%clk 0:02:24]} 12. a3 {[%clk 0:01:45]}  Qd7 {[%clk 0:02:10]} 13. c4 {[%clk 0:01:43]}  Nc7 {[%clk 0:02:04]} 14. Bf4 {[%clk 0:01:19]}  Rad8 {[%clk 0:02:01]} 15. Qc1 {[%clk 0:01:13]}  Kh7 {[%clk 0:01:54]} 16. Ng3 {[%clk 0:01:06]}  Bxd3 {[%clk 0:01:41]} 17. Rd1 {[%clk 0:01:06]}  Qc8 {[%clk 0:01:39]} 18. b4 {[%clk 0:00:58]}  Ne6 {[%clk 0:01:24]} 19. Be3 {[%clk 0:00:56]}  Rd7 {[%clk 0:01:05]} 20. Qc3 {[%clk 0:00:54]}  Rfd8 {[%clk 0:01:05]} 21. Rd2 {[%clk 0:00:50]}  Kg8 {[%clk 0:00:30]} 22. Rad1 {[%clk 0:00:49]}  Bf5 {[%clk 0:00:31]} 23. Nxf5 {[%clk 0:00:49]}  gxf5 {[%clk 0:00:32]} 24. Qc1 {[%clk 0:00:38]}  f4 {[%clk 0:00:23]} 25. Rxd7 {[%clk 0:00:37]}  Rxd7 {[%clk 0:00:24]} 26. Rxd7 {[%clk 0:00:37]}  Qxd7 {[%clk 0:00:25]} 27. Bxf4 {[%clk 0:00:36]}  Qd3 {[%clk 0:00:19]} 28. Bxh6 {[%clk 0:00:33]}  Bxh6 {[%clk 0:00:19]} 29. Qxh6 {[%clk 0:00:34]}  Qxc4 {[%clk 0:00:20]} 30. bxc5 {[%clk 0:00:32]}  Nxc5 {[%clk 0:00:19]} 31. Qxc6 {[%clk 0:00:20]}  Qc1+ {[%clk 0:00:18]} 32. Kh2 {[%clk 0:00:20]}  Qf4+ {[%clk 0:00:19]} 33. Kh1 {[%clk 0:00:20]}  Qc1+ {[%clk 0:00:19]} 34. Ng1 {[%clk 0:00:18]}  Qxa3 {[%clk 0:00:18]} 35. f4 {[%clk 0:00:10]}  Nd3 {[%clk 0:00:15]} 36. Qf3 {[%clk 0:00:08]}  a5 {[%clk 0:00:14]} 37. Kh2 {[%clk 0:00:07]}  Qc3 {[%clk 0:00:14]} 38. Ne2 {[%clk 0:00:06]}  Qc4 {[%clk 0:00:15]} 39. h4 {[%clk 0:00:03]}  a4 {[%clk 0:00:15]} 40. h5 {[%clk 0:00:04]}  Qe6 {[%clk 0:00:13]} 41. Qxd3 {[%clk 0:00:02]}  a3 {[%clk 0:00:12]} 0-1


[Site "https://www.chess.com"]

[Event "Titled Tuesday Blitz January 31 Early 2023"]
[White "Chakravarthi Reddy, M"]
[Black "Goltsev, Dmitry"]
[WhiteFideId "25009532"]
[BlackFideId "24176710"]
[WhiteElo "2279"]
[BlackElo "2269"]
[Result "0-1"]
[Round "01"]
[TimeControl "180+2"]
[Date "2023.01.31"]
[WhiteClock "0:00:15"]
[BlackClock "0:01:22"]

1. e4 {[%clk 0:02:58]}  e6 {[%clk 0:02:27]} 2. d4 {[%clk 0:02:57]}  d5 {[%clk 0:02:28]} 3. e5 {[%clk 0:02:57]}  c5 {[%clk 0:02:28]} 4. c3 {[%clk 0:02:58]}  Nc6 {[%clk 0:02:28]} 5. Nf3 {[%clk 0:02:58]}  Qb6 {[%clk 0:02:28]} 6. Be2 {[%clk 0:02:58]}  Nge7 {[%clk 0:02:28]} 7. O-O {[%clk 0:02:57]}  cxd4 {[%clk 0:02:28]} 8. h4 {[%clk 0:02:55]}  Nf5 {[%clk 0:02:25]} 9. g4 {[%clk 0:02:52]}  Nh6 {[%clk 0:02:25]} 10. Bxh6 {[%clk 0:02:46]}  gxh6 {[%clk 0:02:26]} 11. Qc2 {[%clk 0:02:36]}  Rg8 {[%clk 0:02:24]} 12. Qxh7 {[%clk 0:02:29]}  Rxg4+ {[%clk 0:02:21]} 13. Kh1 {[%clk 0:02:28]}  Qxb2 {[%clk 0:02:16]} 14. Nbd2 {[%clk 0:02:26]}  dxc3 {[%clk 0:02:11]} 15. Rab1 {[%clk 0:01:56]}  Qa3 {[%clk 0:02:08]} 16. Rb3 {[%clk 0:01:51]}  Qe7 {[%clk 0:02:05]} 17. Rxc3 {[%clk 0:01:37]}  Nxe5 {[%clk 0:02:04]} 18. Nh2 {[%clk 0:01:18]}  Rxh4 {[%clk 0:01:57]} 19. Rfc1 {[%clk 0:01:07]}  Bd7 {[%clk 0:01:54]} 20. Rc7 {[%clk 0:01:01]}  Qd6 {[%clk 0:01:50]} 21. Nf1 {[%clk 0:00:38]}  Bc6 {[%clk 0:01:35]} 22. R7xc6 {[%clk 0:00:24]}  Nxc6 {[%clk 0:01:31]} 23. Ng3 {[%clk 0:00:19]}  Qf4 {[%clk 0:01:28]} 24. Rb1 {[%clk 0:00:17]}  O-O-O {[%clk 0:01:27]} 25. Qc2 {[%clk 0:00:16]}  Qxf2 {[%clk 0:01:24]} 26. Nf1 {[%clk 0:00:15]}  Bd6 {[%clk 0:01:22]} 27. Rxb7 {[%clk 0:00:15]}  Rxh2+ {[%clk 0:01:22]} 0-1


[Site "https://www.chess.com"]

[Event "Titled Tuesday Blitz January 31 Early 2023"]
[White "Iliaguev, Nisim"]
[Black "Estrada Nieto, Julian"]
[WhiteFideId "2817276"]
[BlackFideId "5101018"]
[WhiteElo "2402"]
[BlackElo "2215"]
[Result "1-0"]
[Round "01"]
[TimeControl "180+2"]
[Date "2023.01.31"]
[WhiteClock "0:01:09"]
[BlackClock "0:00:30"]

1. e4 {[%clk 0:02:51]}  e5 {[%clk 0:02:59]} 2. Nf3 {[%clk 0:02:50]}  Nc6 {[%clk 0:02:59]} 3. d4 {[%clk 0:02:48]}  exd4 {[%clk 0:02:59]} 4. Bc4 {[%clk 0:02:48]}  Bc5 {[%clk 0:02:57]} 5. c3 {[%clk 0:02:48]}  Nf6 {[%clk 0:02:42]} 6. e5 {[%clk 0:02:46]}  d5 {[%clk 0:02:42]} 7. Be2 {[%clk 0:02:44]}  Ne4 {[%clk 0:02:39]} 8. cxd4 {[%clk 0:02:43]}  Bb4+ {[%clk 0:02:39]} 9. Bd2 {[%clk 0:02:44]}  Nxd2 {[%clk 0:02:38]} 10. Nbxd2 {[%clk 0:02:43]}  Bg4 {[%clk 0:02:30]} 11. O-O {[%clk 0:02:42]}  O-O {[%clk 0:02:26]} 12. h3 {[%clk 0:02:39]}  Bh5 {[%clk 0:02:22]} 13. a3 {[%clk 0:02:38]}  Be7 {[%clk 0:02:15]} 14. Rc1 {[%clk 0:02:38]}  a6 {[%clk 0:02:11]} 15. b4 {[%clk 0:02:28]}  Qd7 {[%clk 0:02:10]} 16. Nb3 {[%clk 0:02:27]}  Nd8 {[%clk 0:02:05]} 17. Nc5 {[%clk 0:02:18]}  Bxc5 {[%clk 0:02:03]} 18. bxc5 {[%clk 0:02:17]}  Ne6 {[%clk 0:02:01]} 19. Re1 {[%clk 0:02:11]}  Rfd8 {[%clk 0:01:43]} 20. Qd2 {[%clk 0:02:05]}  Qa4 {[%clk 0:01:34]} 21. Bd1 {[%clk 0:01:47]}  Qxa3 {[%clk 0:01:32]} 22. Re3 {[%clk 0:01:41]}  Qxc1 {[%clk 0:01:08]} 23. Qxc1 {[%clk 0:01:41]}  Bxf3 {[%clk 0:01:08]} 24. Bxf3 {[%clk 0:01:38]}  Nxd4 {[%clk 0:01:08]} 25. Rd3 {[%clk 0:01:36]}  Nxf3+ {[%clk 0:01:05]} 26. Rxf3 {[%clk 0:01:37]}  c6 {[%clk 0:00:59]} 27. h4 {[%clk 0:01:36]}  Rd7 {[%clk 0:00:59]} 28. h5 {[%clk 0:01:35]}  h6 {[%clk 0:00:59]} 29. Rg3 {[%clk 0:01:32]}  Kf8 {[%clk 0:00:57]} 30. Qf4 {[%clk 0:01:31]}  Re8 {[%clk 0:00:57]} 31. Qg4 {[%clk 0:01:28]}  Re6 {[%clk 0:00:47]} 32. Qxg7+ {[%clk 0:01:26]}  Ke7 {[%clk 0:00:48]} 33. Rf3 {[%clk 0:01:18]}  Kd8 {[%clk 0:00:39]} 34. Qf8+ {[%clk 0:01:12]}  Re8 {[%clk 0:00:35]} 35. Qxh6 {[%clk 0:01:11]}  Rxe5 {[%clk 0:00:34]} 36. Qf6+ {[%clk 0:01:09]}  Ree7 {[%clk 0:00:33]} 37. h6 {[%clk 0:01:10]}  Kc7 {[%clk 0:00:30]} 38. h7 {[%clk 0:01:09]} 1-0


[Site "https://www.chess.com"]

[Event "Titled Tuesday Blitz January 31 Early 2023"]
[White "Dourerassou, Jonathan"]
[Black "Yirik, Volkan"]
[WhiteFideId "628050"]
[BlackFideId "6300782"]
[WhiteElo "2414"]
[BlackElo "1957"]
[Result "1-0"]
[Round "01"]
[TimeControl "180+2"]
[Date "2023.01.31"]
[WhiteClock "0:02:15"]
[BlackClock "0:01:58"]

1. d4 {[%clk 0:03:00]}  Nf6 {[%clk 0:02:56]} 2. Bg5 {[%clk 0:03:00]}  e6 {[%clk 0:02:56]} 3. e4 {[%clk 0:03:00]}  h6 {[%clk 0:02:54]} 4. Bxf6 {[%clk 0:03:00]}  Qxf6 {[%clk 0:02:55]} 5. Nf3 {[%clk 0:02:59]}  d6 {[%clk 0:02:55]} 6. Nc3 {[%clk 0:02:59]}  a6 {[%clk 0:02:54]} 7. e5 {[%clk 0:02:59]}  dxe5 {[%clk 0:02:53]} 8. dxe5 {[%clk 0:03:00]}  Qe7 {[%clk 0:02:52]} 9. Qd2 {[%clk 0:02:57]}  g6 {[%clk 0:02:52]} 10. O-O-O {[%clk 0:02:55]}  Bg7 {[%clk 0:02:53]} 11. Ne4 {[%clk 0:02:55]}  O-O {[%clk 0:02:52]} 12. Qc3 {[%clk 0:02:51]}  b6 {[%clk 0:02:47]} 13. h4 {[%clk 0:02:47]}  Bb7 {[%clk 0:02:47]} 14. Nf6+ {[%clk 0:02:47]}  Kh8 {[%clk 0:02:46]} 15. h5 {[%clk 0:02:46]}  g5 {[%clk 0:02:37]} 16. Nh2 {[%clk 0:02:42]}  Bxf6 {[%clk 0:02:21]} 17. exf6 {[%clk 0:02:43]}  Qc5 {[%clk 0:02:22]} 18. Qxc5 {[%clk 0:02:43]}  bxc5 {[%clk 0:02:23]} 19. Ng4 {[%clk 0:02:43]}  Nc6 {[%clk 0:02:17]} 20. Nxh6 {[%clk 0:02:40]}  Nd4 {[%clk 0:02:12]} 21. c3 {[%clk 0:02:35]}  Nf5 {[%clk 0:02:12]} 22. Nxf5 {[%clk 0:02:32]}  exf5 {[%clk 0:02:13]} 23. Rd7 {[%clk 0:02:32]}  Rad8 {[%clk 0:02:09]} 24. Rxc7 {[%clk 0:02:30]}  Be4 {[%clk 0:02:07]} 25. f3 {[%clk 0:02:30]}  Bd5 {[%clk 0:02:07]} 26. c4 {[%clk 0:02:20]}  Be6 {[%clk 0:02:06]} 27. Be2 {[%clk 0:02:19]}  Rd4 {[%clk 0:02:05]} 28. Rxc5 {[%clk 0:02:17]}  Rfd8 {[%clk 0:02:01]} 29. Rd1 {[%clk 0:02:16]}  f4 {[%clk 0:02:00]} 30. Rxd4 {[%clk 0:02:15]}  Rxd4 {[%clk 0:01:58]} 31. Rxg5 {[%clk 0:02:15]}  Bxc4 {[%clk 0:01:57]} 32. Bxc4 {[%clk 0:02:15]}  Rxc4+ {[%clk 0:01:58]} 33. Kd2 {[%clk 0:02:15]} 1-0


[Site "https://www.chess.com"]

[Event "Titled Tuesday Blitz January 31 Early 2023"]
[White "Lotfizadeh, Mehdi"]
[Black "Costachi, Mihnea"]
[WhiteFideId "42513618"]
[BlackFideId "1217518"]
[WhiteElo "1529"]
[BlackElo "2476"]
[Result "0-1"]
[Round "01"]
[TimeControl "180+2"]
[Date "2023.01.31"]
[WhiteClock "0:00:45"]
[BlackClock "0:00:19"]

1. Nf3 {[%clk 0:03:00]}  Nf6 {[%clk 0:02:58]} 2. c4 {[%clk 0:03:00]}  g6 {[%clk 0:02:58]} 3. Nc3 {[%clk 0:03:00]}  Bg7 {[%clk 0:02:59]} 4. d4 {[%clk 0:02:59]}  O-O {[%clk 0:02:59]} 5. Bg5 {[%clk 0:02:59]}  d6 {[%clk 0:02:59]} 6. e3 {[%clk 0:02:59]}  c5 {[%clk 0:02:56]} 7. Be2 {[%clk 0:02:58]}  Nc6 {[%clk 0:02:52]} 8. d5 {[%clk 0:02:57]}  Na5 {[%clk 0:02:52]} 9. Nd2 {[%clk 0:02:55]}  a6 {[%clk 0:02:49]} 10. O-O {[%clk 0:02:52]}  h6 {[%clk 0:02:47]} 11. Bh4 {[%clk 0:02:51]}  Rb8 {[%clk 0:02:47]} 12. a4 {[%clk 0:02:49]}  e6 {[%clk 0:02:40]} 13. e4 {[%clk 0:02:31]}  exd5 {[%clk 0:02:36]} 14. cxd5 {[%clk 0:02:31]}  Re8 {[%clk 0:02:28]} 15. Re1 {[%clk 0:02:28]}  Qc7 {[%clk 0:02:23]} 16. Bg3 {[%clk 0:02:20]}  c4 {[%clk 0:02:17]} 17. f4 {[%clk 0:02:13]}  Qb6+ {[%clk 0:02:10]} 18. Bf2 {[%clk 0:01:52]}  Qxb2 {[%clk 0:02:09]} 19. Bd4 {[%clk 0:01:51]}  Nxd5 {[%clk 0:01:37]} 20. Bxg7 {[%clk 0:01:21]}  Nxc3 {[%clk 0:01:36]} 21. Bxc3 {[%clk 0:01:19]}  Qxc3 {[%clk 0:01:36]} 22. Kh1 {[%clk 0:01:19]}  b5 {[%clk 0:01:30]} 23. axb5 {[%clk 0:01:17]}  axb5 {[%clk 0:01:31]} 24. e5 {[%clk 0:01:16]}  d5 {[%clk 0:01:21]} 25. Nf3 {[%clk 0:01:16]}  Nb3 {[%clk 0:01:18]} 26. Ra7 {[%clk 0:01:15]}  d4 {[%clk 0:01:12]} 27. Nh4 {[%clk 0:01:12]}  d3 {[%clk 0:01:00]} 28. Bf3 {[%clk 0:01:13]}  d2 {[%clk 0:01:01]} 29. Rf1 {[%clk 0:01:11]}  Qd4 {[%clk 0:00:59]} 30. f5 {[%clk 0:01:09]}  Qxa7 {[%clk 0:00:59]} 31. e6 {[%clk 0:01:08]}  g5 {[%clk 0:00:52]} 32. exf7+ {[%clk 0:01:04]}  Qxf7 {[%clk 0:00:53]} 33. Bh5 {[%clk 0:01:00]}  Qd7 {[%clk 0:00:39]} 34. f6 {[%clk 0:01:00]}  Rf8 {[%clk 0:00:23]} 35. f7+ {[%clk 0:00:59]}  Kg7 {[%clk 0:00:23]} 36. Qf3 {[%clk 0:00:58]}  Qd4 {[%clk 0:00:20]} 37. Nf5+ {[%clk 0:00:56]}  Bxf5 {[%clk 0:00:20]} 38. Qxf5 {[%clk 0:00:57]}  Rb6 {[%clk 0:00:18]} 39. Bd1 {[%clk 0:00:50]}  Rf6 {[%clk 0:00:18]} 40. Qxf6+ {[%clk 0:00:45]}  Qxf6 {[%clk 0:00:19]} 0-1


[Site "https://www.chess.com"]

[Event "Titled Tuesday Blitz January 31 Early 2023"]
[White "Sokolovsky, Yahli"]
[Black "Galvan, Jesus"]
[WhiteFideId "2820242"]
[BlackFideId "3800458"]
[WhiteElo "2461"]
[BlackElo "2074"]
[Result "1-0"]
[Round "01"]
[TimeControl "180+2"]
[Date "2023.01.31"]
[WhiteClock "0:00:34"]
[BlackClock "0:00:01"]

1. b3 {[%clk 0:02:50]}  e5 {[%clk 0:02:58]} 2. Bb2 {[%clk 0:02:51]}  Nc6 {[%clk 0:02:16]} 3. e3 {[%clk 0:02:50]}  Nf6 {[%clk 0:02:12]} 4. Nf3 {[%clk 0:02:51]}  Bd6 {[%clk 0:01:48]} 5. d4 {[%clk 0:02:49]}  exd4 {[%clk 0:01:44]} 6. exd4 {[%clk 0:02:50]}  O-O {[%clk 0:01:38]} 7. Be2 {[%clk 0:02:51]}  Re8 {[%clk 0:01:35]} 8. O-O {[%clk 0:02:51]}  Bf8 {[%clk 0:01:33]} 9. d5 {[%clk 0:02:52]}  Nxd5 {[%clk 0:01:25]} 10. Qxd5 {[%clk 0:02:53]}  Rxe2 {[%clk 0:01:25]} 11. Ng5 {[%clk 0:02:53]}  Qe7 {[%clk 0:01:14]} 12. Qd3 {[%clk 0:02:51]}  Qxg5 {[%clk 0:01:04]} 13. Qxe2 {[%clk 0:02:51]}  d5 {[%clk 0:01:03]} 14. Nd2 {[%clk 0:02:48]}  Bf5 {[%clk 0:01:00]} 15. Nf3 {[%clk 0:02:45]}  Qh6 {[%clk 0:00:57]} 16. c4 {[%clk 0:02:21]}  dxc4 {[%clk 0:00:56]} 17. Qxc4 {[%clk 0:02:18]}  Bd6 {[%clk 0:00:56]} 18. Rfe1 {[%clk 0:02:12]}  Be6 {[%clk 0:00:56]} 19. Qh4 {[%clk 0:02:07]}  Qg6 {[%clk 0:00:55]} 20. Ne5 {[%clk 0:01:46]}  Nxe5 {[%clk 0:00:53]} 21. Bxe5 {[%clk 0:01:47]}  Bd5 {[%clk 0:00:46]} 22. Qg3 {[%clk 0:01:46]}  Qxg3 {[%clk 0:00:44]} 23. Bxg3 {[%clk 0:01:40]}  Bb4 {[%clk 0:00:43]} 24. Re2 {[%clk 0:01:20]}  c6 {[%clk 0:00:35]} 25. a3 {[%clk 0:01:19]}  Bc5 {[%clk 0:00:31]} 26. b4 {[%clk 0:01:13]}  Bd4 {[%clk 0:00:28]} 27. Rae1 {[%clk 0:01:13]}  f6 {[%clk 0:00:27]} 28. Re8+ {[%clk 0:01:12]}  Rxe8 {[%clk 0:00:26]} 29. Rxe8+ {[%clk 0:01:13]}  Kf7 {[%clk 0:00:27]} 30. Rc8 {[%clk 0:01:05]}  Kg6 {[%clk 0:00:24]} 31. Rc7 {[%clk 0:01:04]}  b5 {[%clk 0:00:23]} 32. Bd6 {[%clk 0:01:03]}  f5 {[%clk 0:00:07]} 33. Rc8 {[%clk 0:00:43]}  Kh6 {[%clk 0:00:03]} 34. Bf4+ {[%clk 0:00:38]}  Kg6 {[%clk 0:00:02]} 35. Be3 {[%clk 0:00:38]}  Bxe3 {[%clk 0:00:02]} 36. fxe3 {[%clk 0:00:39]}  Kf6 {[%clk 0:00:02]} 37. Rc7 {[%clk 0:00:36]}  h5 {[%clk 0:00:01]} 38. Rxa7 {[%clk 0:00:36]}  g6 {[%clk 0:00:02]} 39. h4 {[%clk 0:00:35]}  Ke5 {[%clk 0:00:02]} 40. g3 {[%clk 0:00:36]}  Ke4 {[%clk 0:00:02]} 41. Kf2 {[%clk 0:00:37]}  Ke5 {[%clk 0:00:01]} 42. Rg7 {[%clk 0:00:37]}  Kf6 {[%clk 0:00:02]} 43. Rd7 {[%clk 0:00:37]}  Ke5 {[%clk 0:00:02]} 44. Rc7 {[%clk 0:00:37]}  Kf6 {[%clk 0:00:02]} 45. Ra7 {[%clk 0:00:37]}  Ke5 {[%clk 0:00:02]} 46. Ra6 {[%clk 0:00:37]}  Ke4 {[%clk 0:00:02]} 47. Ra8 {[%clk 0:00:34]}  Ke5 {[%clk 0:00:02]} 48. Ra7 {[%clk 0:00:35]}  Kf6 {[%clk 0:00:02]} 49. Ra5 {[%clk 0:00:34]}  Ke5 {[%clk 0:00:02]} 50. a4 {[%clk 0:00:34]}  bxa4 {[%clk 0:00:01]} 51. Rxa4 {[%clk 0:00:35]}  Bc4 {[%clk 0:00:01]} 52. Ra8 {[%clk 0:00:34]} 1-0


[Site "https://www.chess.com"]

[Event "Titled Tuesday Blitz January 31 Early 2023"]
[White "Melikhov, Evgeny V."]
[Black "Papasimakopoulos, Alexandros"]
[WhiteFideId "4122046"]
[BlackFideId "4244125"]
[WhiteElo "2269"]
[BlackElo "2401"]
[Result "0-1"]
[Round "01"]
[TimeControl "180+2"]
[Date "2023.01.31"]
[WhiteClock "0:00:03"]
[BlackClock "0:00:34"]

1. d4 {[%clk 0:02:57]}  e6 {[%clk 0:02:07]} 2. c4 {[%clk 0:02:57]}  Nf6 {[%clk 0:02:01]} 3. Nc3 {[%clk 0:02:55]}  Bb4 {[%clk 0:02:02]} 4. Qc2 {[%clk 0:02:54]}  c5 {[%clk 0:02:02]} 5. dxc5 {[%clk 0:02:54]}  Bxc5 {[%clk 0:02:03]} 6. Nf3 {[%clk 0:02:48]}  Qb6 {[%clk 0:02:01]} 7. e3 {[%clk 0:02:48]}  Be7 {[%clk 0:02:00]} 8. b3 {[%clk 0:02:44]}  a6 {[%clk 0:01:59]} 9. Bb2 {[%clk 0:02:43]}  d6 {[%clk 0:01:59]} 10. Be2 {[%clk 0:02:43]}  Nbd7 {[%clk 0:01:59]} 11. g4 {[%clk 0:02:31]}  h6 {[%clk 0:01:54]} 12. Rg1 {[%clk 0:02:29]}  Ne5 {[%clk 0:01:38]} 13. Nxe5 {[%clk 0:02:12]}  dxe5 {[%clk 0:01:39]} 14. h4 {[%clk 0:02:09]}  Nd7 {[%clk 0:01:31]} 15. g5 {[%clk 0:02:06]}  hxg5 {[%clk 0:01:31]} 16. hxg5 {[%clk 0:02:06]}  Nc5 {[%clk 0:01:31]} 17. g6 {[%clk 0:01:54]}  f5 {[%clk 0:01:30]} 18. O-O-O {[%clk 0:01:46]}  Bd7 {[%clk 0:01:30]} 19. Rh1 {[%clk 0:01:10]}  O-O-O {[%clk 0:01:29]} 20. Rh7 {[%clk 0:01:06]}  Rxh7 {[%clk 0:01:20]} 21. gxh7 {[%clk 0:01:06]}  Rh8 {[%clk 0:01:20]} 22. Rh1 {[%clk 0:01:05]}  Be8 {[%clk 0:01:12]} 23. Nd5 {[%clk 0:00:48]}  exd5 {[%clk 0:01:05]} 24. Qxf5+ {[%clk 0:00:47]}  Qe6 {[%clk 0:01:03]} 25. Qxe6+ {[%clk 0:00:37]}  Nxe6 {[%clk 0:01:03]} 26. cxd5 {[%clk 0:00:37]}  Ng5 {[%clk 0:00:58]} 27. Bxe5 {[%clk 0:00:36]}  Bf6 {[%clk 0:00:57]} 28. Bxf6 {[%clk 0:00:30]}  gxf6 {[%clk 0:00:58]} 29. f4 {[%clk 0:00:30]}  Rxh7 {[%clk 0:00:53]} 30. Rg1 {[%clk 0:00:18]}  Nf7 {[%clk 0:00:53]} 31. Rg8 {[%clk 0:00:17]}  Nd6 {[%clk 0:00:53]} 32. e4 {[%clk 0:00:16]}  Re7 {[%clk 0:00:51]} 33. Bg4+ {[%clk 0:00:14]}  Kc7 {[%clk 0:00:51]} 34. e5 {[%clk 0:00:06]}  fxe5 {[%clk 0:00:51]} 35. fxe5 {[%clk 0:00:05]}  Rxe5 {[%clk 0:00:52]} 36. Be6 {[%clk 0:00:06]}  Bc6 {[%clk 0:00:38]} 37. Rg7+ {[%clk 0:00:04]}  Kb6 {[%clk 0:00:39]} 38. dxc6 {[%clk 0:00:03]}  Rxe6 {[%clk 0:00:39]} 39. cxb7 {[%clk 0:00:04]}  Nxb7 {[%clk 0:00:39]} 40. Kb2 {[%clk 0:00:04]}  Nc5 {[%clk 0:00:39]} 41. b4 {[%clk 0:00:04]}  Re2+ {[%clk 0:00:37]} 42. Kc3 {[%clk 0:00:04]}  Ne6 {[%clk 0:00:35]} 43. Rg6 {[%clk 0:00:03]}  Kb5 {[%clk 0:00:34]} 44. Kd3 {[%clk 0:00:03]}  Nf4+ {[%clk 0:00:34]} 0-1


[Site "https://www.chess.com"]